{"text_format":"1","workbook":"xlsx","n_sheets":29,"sheets":["Инструкция","Лог обновления","Титульный","Отпуск ЭЭ сет организациями","Комментарии","Проверка","Statistic","TEHSHEET","et_union","AllSheetsInThisWorkbook","mod_01","mod_11","modComm","modListProv","modButton","modInstruction","modHTTP","REESTR_ORG","REESTR_FIL","REESTR_MO","REESTR_EGRUL","modfrmRegion","modfrmReestr","modfrmFindEGRUL","modfrmCheckUpdates","modReestr","modUpdTemplMain","modHyperlink","modClassifierValidate"],"not_rendered":{"charts":0,"images":18,"macros":1,"external_links":0,"defined_names":125,"comments":0,"pivot_tables":0},"unopened":[],"bounds":{"document_bytes":16777216,"sheet_cells":100000,"rows_first":2000,"rows_last":500,"rows_between":2000,"halvings":0,"cell_chars":16384,"cell_head_chars":4096},"cells_cut":0,"cells_raw":0,"read":"whole","date_system":"1900"}

{"sheet":"Инструкция","index":0,"n_rows":107,"n_cols":27,"rows_kept":107,"cut":false,"hidden":false,"merged":[[106,5,106,23],[85,4,85,6],[81,4,81,23],[87,4,87,9],[87,10,87,23],[102,4,102,23],[92,4,92,9],[93,4,93,9],[92,10,92,23],[93,10,93,23],[104,5,104,18],[90,4,90,9],[90,10,90,23],[82,4,82,23],[86,4,86,9],[86,10,86,23],[1,1,1,6],[2,1,2,2],[4,1,4,24],[6,4,18,23],[45,4,56,23],[20,5,20,12],[20,15,20,23],[21,5,21,12],[21,15,21,23],[34,4,38,23],[22,5,22,13],[58,4,58,9],[58,10,58,23],[59,4,59,9],[59,10,59,23],[39,4,39,23],[71,4,71,23],[70,4,70,23],[72,4,74,23],[88,4,88,23],[89,4,89,9],[89,10,89,23],[80,4,80,23],[79,4,79,23],[76,4,76,23]]}
[null,null,null,null,null,null,null,null,null,null,null,null,null,null,null,null,null,null,null,null,null,null,null,null,null,null," (требуется обновление)"]
[null,{"$f":"\"Код шаблона: \" & GetCode()","v":"Код шаблона: 46EP.STX"}]
[null,{"$f":"\"Версия \" & GetVersion()","v":"Версия 1.0"}]
[]
[null,"Сведения об отпуске (передаче) электроэнергии распределительными сетевыми организациями отдельным категориям потребителей\nПриказ Росстата: Об утверждении формы от 05.09.2018 № 543"]
[]
[null,null,null,null,"• На рабочем месте должен быть установлен MS Office 2007 SP3, 2010, 2013, 2016 с полной версией MS Excel\n\n• Макросы во время работы должны быть включены (!)\n\n• Для корректной работы отчёта требуется выбрать низкий уровень безопасности\n(В меню MS Excel 2007/2010/2013/2016: Параметры Excel | Центр управления безопасностью | Параметры центра управления безопасностью | Параметры макросов | Включить все макросы | ОК)\n\n• Если Вы работаете в табличном процессоре MS Excel 2007 и выше, то можете использовать для работы формат XLSB (Двоичная книга Excel). При работе в формате XLSB заметно быстрее происходит сохранение файла, а также уменьшается размер по сравнению с форматами XLS и XLSM\n\n• Не рекомендуется снимать защиту с листов и каким-либо образом модифицировать защищаемые формулы и расчётные поля, в противном случае, отчёт будет отклонён системой\n\n• При сохранении не следует выбирать формат XLSX (Книга Excel), так как в указанном формате макросы, необходимые для работы отчёта, безвозвратно удаляются"]
[]
[]
[]
[]
[]
[]
[]
[]
[]
[]
[]
[]
[]
[null,null,null,null,"A"," - предназначенные для заполнения",null,null,null,null,null,null,null,null,"A"," - обязательные для заполнения поля"]
[null,null,null,null,"A"," - с формулами и константами",null,null,null,null,null,null,null,null,"A"," - незаполняемые поля"]
[null,null,null,null,"A"," - с выбором значений по двойному клику"]
[]
[]
[]
[]
[]
[]
[]
[]
[]
[]
[]
[null,null,null,null,"Если в предложенном Вам списке необходимая организация, МР/МО отсутствуют, обновите реестры с помощью кнопок\n\nВ результате синхронизации с базой данных список организаций (МР/МО) будет заменён актуальным (механизм синхронизации требует подключения к сети Интернет и основан на использовании протокола HTTPS (TCP порт 443))\n\nЕсли после обновления Вам не удалось найти необходимую организацию в списке, обратитесь к ответственному за поддержание реестра Вашего региона."]
[]
[]
[]
[]
[]
[]
[]
[]
[]
[]
[null,null,null,null,"• При сохранении шаблона осуществляется проверка корректности данных, в том числе на наличие значений в ячейках, обязательных для заполнения\n\n• Если какая-то ячейка не удовлетворяет условию проверки, на лист «Проверка» добавляется гиперссылка на данную ячейку и указывается причина ошибки\n\n• В колонке «Статус» для каждого сообщения возможны 2 значения: ошибка и предупреждение\n\n• При наличии сообщений со статусом «Ошибка» шаблон будет отклонён системой и не будет загружен в хранилище данных, сообщения со статусом «Предупреждение» носят информационный характер, и такой шаблон будет принят системой"]
[]
[]
[]
[]
[]
[]
[]
[]
[]
[]
[]
[]
[null,null,null,null,"Консультации:",null,null,null,null,null,"Обратиться за помощью"]
[null,null,null,null,"Дистрибутивы:",null,null,null,null,null,"Перейти"]
[]
[]
[]
[]
[]
[]
[]
[]
[]
[null,null,null,null,"Общие указания по заполнению:"]
[null,null,null,null,"Указания по заполнению формы федерального статистического наблюдения"]
[]
[null,null,null,null,"Если срок предоставления отчета истек, необходимо загрузить в систему пояснительную записку и указать ссылку на нее на листе \"Титульный\" в поле \"Ссылка на обосновывающие материалы\""]
[]
[]
[null,null,null,null,"Обосновывающие материалы необходимо загружать с помощью \"ЕИАС Мониторинг\":"]
[null,null,null,null,"Руководство по загрузке документов"]
[]
[null,null,null,null,"Пример пояснительной записки:"]
[null,null,null,null,"Пояснительная записка"]
[]
[]
[]
[]
[]
[]
[null,null,null,null,"Отчётные формы:",null,null,null,null,null,"Перейти к разделу"]
[]
[null,null,null,null,"Контакты специалистов ЦА ФАС России:"]
[null,null,null,null,"ФИО:",null,null,null,null,null,"Максим Николаевич Пальянов"]
[null,null,null,null,"E-mail:",null,null,null,null,null,"palyanovmn@fas.gov.ru"]
[]
[null,null,null,null,"ФИО:",null,null,null,null,null,"Игорь Владиславович Бедрин"]
[null,null,null,null,"E-mail:",null,null,null,null,null,"bedrin@fas.gov.ru"]
[]
[]
[]
[]
[]
[]
[]
[]
[null,null,null,null,"При наличии подключения к Интернет, можно автоматически проверять наличие доступных обновлений. Выберите способ оповещения о наличии обновлений для отчёта:"]
[]
[null,null,null,null,null,"проверять доступные обновления (рекомендуется)",null,null,null,null,null,null,null,null,null,null,null,null,null,null,null,null,null,null,null,null,"y"]
[]
[null,null,null,null,null,"никогда не проверять наличие обновлений (не рекомендуется)"]

{"sheet":"Лог обновления","index":1,"n_rows":48,"n_cols":4,"rows_kept":48,"cut":false,"hidden":true,"merged":[]}
[]
["3/17/2012 12:12:41 AM","Дата/Время","Сообщение","Статус"]
[null,"2019-07-16T11:12:16","Проверка доступных обновлений...","Информация"]
[null,"2019-07-16T11:12:18","Нет доступных обновлений для отчёта с кодом 46EP.STX!","Информация"]
[null,"2019-07-16T11:13:42","Проверка доступных обновлений...","Информация"]
[null,"2019-07-16T11:13:43","Нет доступных обновлений для отчёта с кодом 46EP.STX!","Информация"]
[null,"2019-07-16T11:14:16","Проверка доступных обновлений...","Информация"]
[null,"2019-07-16T11:14:17","Нет доступных обновлений для отчёта с кодом 46EP.STX!","Информация"]
[null,"2019-07-16T11:42:48","Проверка доступных обновлений...","Информация"]
[null,"2019-07-16T11:42:49","Нет доступных обновлений для отчёта с кодом 46EP.STX!","Информация"]
[null,"2019-08-15T10:22:13","Проверка доступных обновлений...","Информация"]
[null,"2019-08-15T10:22:14","Нет доступных обновлений для отчёта с кодом 46EP.STX!","Информация"]
[null,"2019-08-15T10:23:39","Проверка доступных обновлений...","Информация"]
[null,"2019-08-15T10:23:41","Нет доступных обновлений для отчёта с кодом 46EP.STX!","Информация"]
[null,"2019-09-12T11:24:04","Проверка доступных обновлений...","Информация"]
[null,"2019-09-12T11:24:06","Нет доступных обновлений для отчёта с кодом 46EP.STX!","Информация"]
[null,"2019-10-15T15:50:00","Проверка доступных обновлений...","Информация"]
[null,"2019-10-15T15:50:01","Нет доступных обновлений для отчёта с кодом 46EP.STX!","Информация"]
[null,"2019-11-15T11:36:41","Проверка доступных обновлений...","Информация"]
[null,"2019-11-15T11:36:43","Нет доступных обновлений для отчёта с кодом 46EP.STX!","Информация"]
[null,"2019-12-17T11:17:58","Проверка доступных обновлений...","Информация"]
[null,"2019-12-17T11:18:00","Нет доступных обновлений для отчёта с кодом 46EP.STX!","Информация"]
[null,"2019-12-17T11:19:00","Проверка доступных обновлений...","Информация"]
[null,"2019-12-17T11:19:01","Нет доступных обновлений для отчёта с кодом 46EP.STX!","Информация"]
[null,"2019-12-17T11:19:51","Проверка доступных обновлений...","Информация"]
[null,"2019-12-17T11:19:52","Нет доступных обновлений для отчёта с кодом 46EP.STX!","Информация"]
[null,"2020-01-15T14:34:31","Проверка доступных обновлений...","Информация"]
[null,"2020-01-15T14:34:33","Нет доступных обновлений для отчёта с кодом 46EP.STX!","Информация"]
[null,"2020-02-14T10:14:48","Проверка доступных обновлений...","Информация"]
[null,"2020-02-14T10:14:49","Нет доступных обновлений для отчёта с кодом 46EP.STX!","Информация"]
[null,"2020-03-17T11:10:24","Проверка доступных обновлений...","Информация"]
[null,"2020-03-17T11:10:26","Нет доступных обновлений для отчёта с кодом 46EP.STX!","Информация"]
[null,"2020-04-20T10:44:37","Проверка доступных обновлений...","Информация"]
[null,"2020-04-20T10:44:38","Нет доступных обновлений для отчёта с кодом 46EP.STX!","Информация"]
[null,"2020-05-20T08:30:41","Проверка доступных обновлений...","Информация"]
[null,"2020-05-20T08:30:43","Нет доступных обновлений для отчёта с кодом 46EP.STX!","Информация"]
[null,"2020-07-15T09:37:10","Проверка доступных обновлений...","Информация"]
[null,"2020-07-15T09:37:11","Нет доступных обновлений для отчёта с кодом 46EP.STX!","Информация"]
[null,"2020-07-15T09:45:35","Проверка доступных обновлений...","Информация"]
[null,"2020-07-15T09:45:37","Нет доступных обновлений для отчёта с кодом 46EP.STX!","Информация"]
[null,"2020-08-14T09:59:51","Проверка доступных обновлений...","Информация"]
[null,"2020-08-14T09:59:53","Нет доступных обновлений для отчёта с кодом 46EP.STX!","Информация"]
[null,"2020-09-21T10:17:49","Проверка доступных обновлений...","Информация"]
[null,"2020-09-21T10:17:51","Нет доступных обновлений для отчёта с кодом 46EP.STX!","Информация"]
[null,"2020-10-15T09:25:22","Проверка доступных обновлений...","Информация"]
[null,"2020-10-15T09:25:23","Нет доступных обновлений для отчёта с кодом 46EP.STX!","Информация"]
[null,"2020-11-16T09:40:06","Проверка доступных обновлений...","Информация"]
[null,"2020-11-16T09:40:07","Нет доступных обновлений для отчёта с кодом 46EP.STX!","Информация"]

{"sheet":"Титульный","index":2,"n_rows":60,"n_cols":10,"rows_kept":60,"cut":false,"hidden":false,"merged":[[7,4,7,6]]}
[]
[]
[]
[]
[]
[]
[null,null,null,null,null,null,{"$f":"version","v":"Версия 1.0"}]
[null,null,null,null,"Сведения об отпуске (передаче) электроэнергии распределительными сетевыми организациями отдельным категориям потребителей"]
[]
[null,null,null,null,null,"Субъект РФ","Смоленская область"]
[null,null,null,null,null,null,"Отчетный период"]
[null,null,null,null,null,"Год",2020]
[null,null,null,null,null,"Месяц","год"]
[]
[null,null,null,null,null,"Наименование организации","ООО \"Горэлектро\"",null,null,"28505959"]
[null,null,null,null,null,"ИНН","6732066794"]
[null,null,null,null,null,"КПП","673201001"]
[null,null,null,null,null,"Вид деятельности","РСО"]
[]
[null,null,null,null,null,"Тип отчета","В целом по организации"]
[null,null,null,null,null,"Наименование обособленного подразделения"]
[]
[null,null,null,null,null,"ОКПО","23226847"]
[]
[null,null,null,null,null,"ОКАТО","66401000000"]
[]
[null,null,null,null,null,"Муниципальный район","Город Смоленск"]
[null,null,null,null,null,"Муниципальное образование","Город Смоленск"]
[null,null,null,null,null,"ОКТМО","66701000"]
[]
[null,null,null,null,null,"Котлодержатель","Нет"]
[]
[null,null,null,null,null,"Плательщик НДС","Да"]
[null,null,null,null,null,null,"Адрес организации"]
[null,null,null,null,null,"Юридический адрес:","214000, г. Смоленск, ул. Студенческая, д. 5"]
[null,null,null,null,null,"Почтовый адрес:","214000, г. Смоленск, ул. Студенческая, д. 5"]
[null,null,null,null,null,null,"Руководитель"]
[null,null,null,null,null,"Фамилия, имя, отчество","Бычков Дмитрий Александрович"]
[null,null,null,null,null,"(код) номер телефона","89605842665"]
[null,null,null,null,null,null,"Главный бухгалтер"]
[null,null,null,null,null,"Фамилия, имя, отчество","Буланенкова Оксана Валерьевна"]
[null,null,null,null,null,"(код) номер телефона","83621917513"]
[null,null,null,null,null,null,"Должностное лицо, ответственное за составление формы"]
[null,null,null,null,null,"Фамилия, имя, отчество","Маркадеева Анна Владимировна"]
[null,null,null,null,null,"Должность","заместитель генерального директора"]
[null,null,null,null,null,"(код) номер телефона","89156362155"]
[null,null,null,null,null,"e-mail","gorelectro@mail.ru"]
[]
[null,null,null,null,null,"Максимальный интервал представления отчёта за прошедшие периоды (дней)","90"]
[]
[]
[]
[]
[]
[]
[null,null,null,null,"Дата последнего обновления реестра МР/МО:\r16.07.2019 11:14:49"]
[null,null,null,null,"Дата последнего обновления реестра организаций: 16.11.2020 9:40:17"]
[]
[null,null,null,null,null,"Срок предоставления отчета истек","Нет"]
[null,null,null,null,null,"Ссылка на обосновывающие материалы"]

{"sheet":"Отпуск ЭЭ сет организациями","index":3,"n_rows":158,"n_cols":17,"rows_kept":158,"cut":false,"hidden":false,"merged":[[7,3,7,4],[10,3,11,3],[13,3,13,10],[53,3,53,10],[10,4,11,4],[10,5,11,5],[10,6,11,6],[10,7,10,10],[93,3,93,10],[97,3,97,10],[130,3,130,10],[153,5,153,6],[153,8,153,10],[154,5,154,6],[154,8,154,10],[154,12,154,13],[156,5,156,7],[157,5,157,7]]}
[]
[]
[]
[]
[null,null,null,null,null,"L1","L1.1","L1.2","L2","L2.1","L2.2","L3","L3.1","L3.1","L3.2","L4.1","L4.2"]
[]
[]
[null,null,null,"Сведения об отпуске (передаче) электроэнергии распределительными сетевыми организациями отдельным категориям потребителей"]
[null,null,null,{"$f":"IF(org=\"\",\"Не определено\",org)","v":"ООО \"Горэлектро\""}]
[null,null,null,null,null,null,null,null,null,null,"Коды по ОКЕИ: 1000 киловатт-часов – 246, мегаватт – 215, тысяча рублей – 384"]
[null,null,null,"№ п/п","Наименование показателя","Код строки","Всего","В том числе по уровню напряжения"]
[null,null,null,null,null,null,null,"ВН","СН1","СН2","НН"]
[null,null,null,0,1,2,3,4,5,6,7]
[null,null,null,"I. Электроэнергия (тыс. кВт ч)"]
[null,null,null,"1","Поступление в сеть из других организаций:",10,{"$f":"SUM(H15:K15)","v":78478.309000000008},{"$f":"H16+H17+H20+H23","v":7575.5110000000004},{"$f":"I16+I17+I20+I23","v":2365.192},{"$f":"J16+J17+J20+J23","v":52745.965000000004},{"$f":"K16+K17+K20+K23","v":15791.641},null,null,null,null,10]
[null,null,null,"1.1","из сетей ПАО \"ФСК ЕЭС\"",20,{"$f":"SUM(H16:K16)","v":1664.796},null,null,1664.796,null,null,null,null,null,20]
[null,null,null,"1.2","от генерирующих компаний и блок-станций:",30,0,{"$f":"SUM(H18:H19)","v":0},{"$f":"SUM(I18:I19)","v":0},{"$f":"SUM(J18:J19)","v":0},{"$f":"SUM(K18:K19)","v":0},null,null,null,null,30]
[null,null,null,"1.2.0",null,"30"]
[null,null,null,null,"Добавить организацию"]
[null,null,null,"1.3","от несетевых организаций:","230",0,{"$f":"SUM(H21:H22)","v":0},{"$f":"SUM(I21:I22)","v":0},{"$f":"SUM(J21:J22)","v":0},{"$f":"SUM(K21:K22)","v":0}]
[null,null,null,"1.3.0",null,"230"]
[null,null,null,null,"Добавить организацию"]
[null,null,null,"1.4","от смежных сетевых организаций:","430",76813.513000000006,{"$f":"SUM(H24:H28)","v":7575.5110000000004},{"$f":"SUM(I24:I28)","v":2365.192},{"$f":"SUM(J24:J28)","v":51081.169000000002},{"$f":"SUM(K24:K28)","v":15791.641},null,null,null,null,40]
[null,null,null,"1.4.0",null,"430"]
[null,null,"О","1.4.1","ПАО \"МРСК центра\" (на территории Смоленской области)",431,{"$f":"SUM(H25:K25)","v":72872.657999999996},7575.5110000000004,2365.192,47140.313999999998,15791.641,null,"6901067107","673102001","26322017"]
[null,null,"О","1.4.2","ОГУЭПП \"Смоленскоблкоммунэнерго\"",432,{"$f":"SUM(H26:K26)","v":144.58000000000001},0,0,144.58000000000001,0,null,"6731000014","673101001","28266261"]
[null,null,"О","1.4.3","ООО \"ТСО № 3\"",433,{"$f":"SUM(H27:K27)","v":3796.2750000000001},0,0,3796.2750000000001,0,null,"6732038719","673201001","28041460"]
[null,null,null,null,"Добавить организацию"]
[null,null,null,"2","Поступление в сеть из других уровней напряжения (трансформация)","630",47614.247000000003,{"$f":"H31+H32+H33","v":0},{"$f":"I30+I32+I33","v":0},{"$f":"J30+J31+J33","v":9940.7030000000013},{"$f":"K30+K31+K32","v":37673.544000000002},null,null,null,null,50]
[null,null,null,"2.1","ВН","640",7575.5110000000004,null,null,{"$f":"H25","v":7575.5110000000004},null,null,null,null,null,60]
[null,null,null,"2.2","СН1","650",2365.192,null,null,{"$f":"I25","v":2365.192},null,null,null,null,null,70]
[null,null,null,"2.3","СН2","660",37673.544000000002,null,null,null,{"$f":"J30+J31+J15-J35-J50","v":37673.544000000002},null,null,null,null,80]
[null,null,null,"2.4","НН ","670",0,null,null,null,null,null,null,null,null,90]
[null,null,null,"3","Генерация на установках организации (совмещение деятельности)","680",0]
[null,null,null,"4","Отпуск из сети:","690",76167.820000000007,{"$f":"H36+H38+H41+H45","v":0},{"$f":"I36+I38+I41+I45","v":0},{"$f":"J36+J38+J41+J45","v":23975.132999999998},{"$f":"K36+K38+K41+K45","v":52192.687000000005},null,null,null,null,100]
[null,null,null,"4.1","прямым прочим потребителям по договорам оказания услуг по передаче электрической энергии, в том числе:","700",0]
[null,null,null,"4.1.1","потребителям, опосредованно подключенным к шинам генераторов","710",0]
[null,null,null,"4.2","потребителям ГП, ЭСО, ЭСК, в том числе:","720",29753.006000000001,null,null,18509.048999999999,11243.957]
[null,null,null,"4.2.1","прочим потребителям, в том числе:","730",0]
[null,null,null,"4.2.1.1","потребителям, опосредованно подключенным к шинам генераторов","740",0]
[null,null,null,"4.3","смежным сетевым организациям:","750",5466.0839999999998,{"$f":"SUM(H42:H44)","v":0},{"$f":"SUM(I42:I44)","v":0},{"$f":"SUM(J42:J44)","v":5466.0839999999998},{"$f":"SUM(K42:K44)","v":0}]
[null,null,null,"4.3.0",null,"750"]
[null,null,"О","4.3.1","ПАО \"МРСК центра\" (на территории Смоленской области)",751,{"$f":"SUM(H43:K43)","v":5466.0839999999998},null,null,5466.0839999999998,null,null,"6901067107","673102001","26322017"]
[null,null,null,null,"Добавить организацию"]
[null,null,null,"4.4","населению и приравненным к нему категориям","950",40948.730000000003,null,null,null,40948.730000000003,null,null,null,null,120]
[null,null,null,"5","Отпуск в сеть других уровней напряжения","960",47614.247000000003,{"$f":"G30","v":7575.5110000000004},{"$f":"G31","v":2365.192},{"$f":"G32","v":37673.544000000002},{"$f":"G33","v":0},null,null,null,null,150]
[null,null,null,"6","Хозяйственные нужды организации","970",0,null,null,null,null,null,null,null,null,160]
[null,null,null,"7","Собственное потребление (совмещение деятельности)","980",0,null,null,null,null,null,null,null,null,180]
[null,null,null,"8","Общий объем потерь (фактические объемы), в том числе:","990",2310.489,{"$f":"H50","v":0},{"$f":"I50","v":0},{"$f":"J50","v":1037.991},{"$f":"K50","v":1272.498},null,null,null,null,190]
[null,null,null,"8.1","относимые на собственное потребление (фактическое значение)","1000",2310.489,0,0,1037.991,1272.498,null,null,null,null,200]
[null,null,null,"9","Нормативные потери (объемы потерь учтенные в сводном прогнозном балансе)","1010",11611.201000000001,null,null,4644.4809999999998,6966.72]
[null,null,null,"10","Объем превышения фактических объемов потерь электрической энергии над объемами потерь, учтенными в сводном прогнозном балансе за соответствующий расчетный период","1020",-9300.7119999999995,{"$f":"H49-H51","v":0},{"$f":"I49-I51","v":0},{"$f":"J49-J51","v":-3606.49},{"$f":"K49-K51","v":-5694.2219999999998}]
[null,null,null,"11","Небаланс","1030",0,{"$f":"(H15+H29+H34)-(H35+H46+H47+H48+H49)","v":0},{"$f":"(I15+I29+I34)-(I35+I46+I47+I48+I49)","v":0},{"$f":"(J15+J29+J34)-(J35+J46+J47+J48+J49)","v":0},{"$f":"(K15+K29+K34)-(K35+K46+K47+K48+K49)","v":0},null,null,null,null,210]
[null,null,null,"II. Мощность (МВт)"]
[null,null,null,"12","Поступление в сеть из других организаций:","1040",13.3385,{"$f":"H56+H57+H60+H63","v":1.2917000000000001},{"$f":"I56+I57+I60+I63","v":0.3997},{"$f":"J56+J57+J60+J63","v":8.9564000000000004},{"$f":"K56+K57+K60+K63","v":2.6907000000000001},null,null,null,null,300]
[null,null,null,"12.1","из сетей ПАО \"ФСК ЕЭС\"","1050",0.28220000000000001,null,null,0.28220000000000001,null,null,null,null,null,310]
[null,null,null,"12.2","от генерирующих компаний и блок-станций:","1060",0,{"$f":"SUM(H58:H59)","v":0},{"$f":"SUM(I58:I59)","v":0},{"$f":"SUM(J58:J59)","v":0},{"$f":"SUM(K58:K59)","v":0},null,null,null,null,320]
[null,null,null,"12.2.0",null,"1060"]
[null,null,null,null,"Добавить организацию"]
[null,null,null,"12.3","от несетевых организаций:","1260",0,{"$f":"SUM(H61:H62)","v":0},{"$f":"SUM(I61:I62)","v":0},{"$f":"SUM(J61:J62)","v":0},{"$f":"SUM(K61:K62)","v":0}]
[null,null,null,"12.3.0",null,"1260"]
[null,null,null,null,"Добавить организацию"]
[null,null,null,"12.4","от смежных сетевых организаций:","1460",13.0563,{"$f":"SUM(H64:H68)","v":1.2917000000000001},{"$f":"SUM(I64:I68)","v":0.3997},{"$f":"SUM(J64:J68)","v":8.6742000000000008},{"$f":"SUM(K64:K68)","v":2.6907000000000001},null,null,null,null,330]
[null,null,null,"12.4.0",null,"1460"]
[null,null,"О","12.4.1","ПАО \"МРСК центра\" (на территории Смоленской области)",1461,{"$f":"SUM(H65:K65)","v":12.3863},1.2917000000000001,0.3997,8.0042000000000009,2.6907000000000001,null,"6901067107","673102001","26322017"]
[null,null,"О","12.4.2","ОГУЭПП \"Смоленскоблкоммунэнерго\"",1462,{"$f":"SUM(H66:K66)","v":2.47E-2},null,null,2.47E-2,null,null,"6731000014","673101001","28266261"]
[null,null,"О","12.4.3","ООО \"ТСО № 3\"",1463,{"$f":"SUM(H67:K67)","v":0.64529999999999998},null,null,0.64529999999999998,null,null,"6732038719","673201001","28041460"]
[null,null,null,null,"Добавить организацию"]
[null,null,null,"13","Поступление в сеть из других уровней напряжения (трансформация)","1660",8.0971000000000011,{"$f":"H71+H72+H73","v":0},{"$f":"I70+I72+I73","v":0},{"$f":"J70+J71+J73","v":1.6914},{"$f":"K70+K71+K72","v":6.4057000000000004},null,null,null,null,340]
[null,null,null,"13.1","ВН","1670",1.2917000000000001,null,null,{"$f":"H65","v":1.2917000000000001},null,null,null,null,null,350]
[null,null,null,"13.2","СН1","1680",0.3997,null,null,{"$f":"I65","v":0.3997},null,null,null,null,null,360]
[null,null,null,"13.3","СН2","1690",6.4057000000000004,null,null,null,6.4057000000000004,null,null,null,null,370]
[null,null,null,"13.4","НН ","1700",0,null,null,null,null,null,null,null,null,380]
[null,null,null,"14","Генерация на установках организации (совмещение деятельности)","1710",0]
[null,null,null,"15","Отпуск из сети:","1720",12.949400000000001,{"$f":"H76+H78+H81+H85","v":0},{"$f":"I76+I78+I81+I85","v":0},{"$f":"J76+J78+J81+J85","v":4.0670000000000002},{"$f":"K76+K78+K81+K85","v":8.8824000000000005},null,null,null,null,390]
[null,null,null,"15.1","прямым прочим потребителям по договорам оказания услуг по передаче электрической энергии, в том числе:","1730",0]
[null,null,null,"15.1.1","потребителям, опосредованно подключенным к шинам генераторов","1740",0]
[null,null,null,"15.2","потребителям ГП, ЭСО, ЭСК, в том числе:","1750",5.0435999999999996,null,null,3.1349999999999998,1.9086000000000001]
[null,null,null,"15.2.1","прочим потребителям, в том числе:","1760",0]
[null,null,null,"15.2.1.1","потребителям, опосредованно подключенным к шинам генераторов","1770",0]
[null,null,null,"15.3","смежным сетевым организациям:","1780",0.93200000000000005,{"$f":"SUM(H82:H84)","v":0},{"$f":"SUM(I82:I84)","v":0},{"$f":"SUM(J82:J84)","v":0.93200000000000005},{"$f":"SUM(K82:K84)","v":0}]
[null,null,null,"15.3.0",null,"1780"]
[null,null,"О","15.3.1","ПАО \"МРСК центра\" (на территории Смоленской области)",1781,{"$f":"SUM(H83:K83)","v":0.93200000000000005},null,null,0.93200000000000005,null,null,"6901067107","673102001","26322017"]
[null,null,null,null,"Добавить организацию"]
[null,null,null,"15.4","населению и приравненным к нему категориям","1980",6.9737999999999998,null,null,null,6.9737999999999998,null,null,null,null,410]
[null,null,null,"16","Отпуск в сеть других уровней напряжения","1990",8.0971000000000011,{"$f":"G70","v":1.2917000000000001},{"$f":"G71","v":0.3997},{"$f":"G72","v":6.4057000000000004},{"$f":"G73","v":0},null,null,null,null,440]
[null,null,null,"17","Хозяйственные нужды организации","2000",0,null,null,null,null,null,null,null,null,450]
[null,null,null,"18","Собственное потребление (совмещение деятельности)","2010",0,null,null,null,null,null,null,null,null,470]
[null,null,null,"19","Общий объем потерь (фактические объемы), в том числе:","2020",0.3891,{"$f":"H90","v":0},{"$f":"I90","v":0},{"$f":"J90","v":0.17510000000000001},{"$f":"K90","v":0.214},null,null,null,null,480]
[null,null,null,"19.1","относимые на собственное потребление","2030",0.3891,0,0,0.17510000000000001,0.214,null,null,null,null,490]
[null,null,null,"20","Нормативные потери (объемы потерь учтенные в сводном прогнозном балансе)","2040",0.97729999999999995,null,null,null,0.97729999999999995]
[null,null,null,"21","Объем превышения фактических объемов потерь электрической энергии над объемами потерь, учтенными в сводном прогнозном балансе за соответствующий расчетный период","2050",-0.58819999999999995,{"$f":"H89-H91","v":0},{"$f":"I89-I91","v":0},{"$f":"J89-J91","v":0.17510000000000001},{"$f":"K89-K91","v":-0.76329999999999998}]
[null,null,null,"22","Небаланс","2060",0,{"$f":"(H55+H69+H74)-(H75+H86+H87+H88+H89)","v":0},{"$f":"(I55+I69+I74)-(I75+I86+I87+I88+I89)","v":0},{"$f":"(J55+J69+J74)-(J75+J86+J87+J88+J89)","v":0},{"$f":"(K55+K69+K74)-(K75+K86+K87+K88+K89)","v":0},null,null,null,null,500]
[null,null,null,"III. Мощность (МВт)"]
[null,null,null,"23","Заявленная мощность","2070",14.75,null,null,14.75,null,null,null,null,null,600]
[null,null,null,"24","Максимальная мощность","2080",0,null,null,null,null,null,null,null,null,610]
[null,null,null,"25","Резервируемая мощность","2090",0,null,null,null,null,null,null,null,null,620]
[null,null,null,"IV. Фактический полезный отпуск конечным потребителям (тыс. кВт ч; МВт)"]
[null,null,null,"26","Полезный отпуск конечным потребителям (тыс. кВт ч):","2100",0,{"$f":"SUM(H100:H101)","v":0},{"$f":"SUM(I100:I101)","v":0},{"$f":"SUM(J100:J101)","v":0},{"$f":"SUM(K100:K101)","v":0},null,null,null,null,700]
[null,null,null,"26.1","по одноставочному тарифу","2110",0,null,null,null,null,null,null,null,null,710]
[null,null,null,"26.2","по двухставочному тарифу:","2120",0,{"$f":"H104","v":0},{"$f":"I104","v":0},{"$f":"J104","v":0},{"$f":"K104","v":0},null,null,null,null,720]
[null,null,null,"26.2.1","мощность (МВт), в том числе:","2130",0,null,null,null,null,null,null,null,null,730]
[null,null,null,"26.2.1.1","опосредованно подключенным к шинам генераторов (МВт)","2140",0]
[null,null,null,"26.2.2","компенсация потерь (тыс. кВт ч)","2150",0,null,null,null,null,null,null,null,null,740]
[null,null,null,"27","Полезный отпуск потребителям ГП, ЭСО (тыс. кВт ч):","2160",0,{"$f":"H106+H122","v":0},{"$f":"I106+I122","v":0},{"$f":"J106+J122","v":0},{"$f":"K106+K122","v":0},null,null,null,null,750]
[null,null,null,"27.1","по одноставочному тарифу:","2170",0,{"$f":"H107+H108","v":0},{"$f":"I107+I108","v":0},{"$f":"J107+J108","v":0},{"$f":"K107+K108","v":0},null,null,null,null,760]
[null,null,null,"27.1.1","прочим потребителям","2180",0]
[null,null,null,"27.1.2","населению и приравненным к нему категориям потребителей:","2190",0,{"$f":"H109+H112+H115+H118+H119+H120+H121","v":0},{"$f":"I109+I112+I115+I118+I119+I120+I121","v":0},{"$f":"J109+J112+J115+J118+J119+J120+J121","v":0},{"$f":"K109+K112+K115+K118+K119+K120+K121","v":0}]
[null,null,null,"27.1.2.1","Населению, проживающему в городских населенных пунктах в домах, не оборудованных в установленном порядке стационарными электроплитами и (или) электроотопительными установками и приравненным к нему категориям потребителей:","2200",0,{"$f":"H110+H111","v":0},{"$f":"I110+I111","v":0},{"$f":"J110+J111","v":0},{"$f":"K110+K111","v":0}]
[null,null,null,"27.1.2.1.1","в пределах социальной нормы потребления","2210",0]
[null,null,null,"27.1.2.1.2","сверх социальной нормы потребления","2220",0]
[null,null,null,"27.1.2.2","Населению, проживающему в городских населенных пунктах в домах, оборудованных в установленном порядке стационарными электроплитами и электроотопительными установками и приравненным к нему категориям потребителей:","2230",0,{"$f":"H113+H114","v":0},{"$f":"I113+I114","v":0},{"$f":"J113+J114","v":0},{"$f":"K113+K114","v":0}]
[null,null,null,"27.1.2.2.1","в пределах социальной нормы потребления","2240",0]
[null,null,null,"27.1.2.2.2","сверх социальной нормы потребления","2250",0]
[null,null,null,"27.1.2.3","Населению, проживающему в сельских населенных пунктах и приравненным к нему потребителям:","2260",0,{"$f":"H116+H117","v":0},{"$f":"I116+I117","v":0},{"$f":"J116+J117","v":0},{"$f":"K116+K117","v":0}]
[null,null,null,"27.1.2.3.1","в пределах социальной нормы потребления","2270",0]
[null,null,null,"27.1.2.3.2","сверх социальной нормы потребления","2280",0]
[null,null,null,"27.1.2.4","Садоводческим, огородническим или дачным некоммерческим объединениям граждан","2290",0]
[null,null,null,"27.1.2.5","Религиозным организациям","2300",0]
[null,null,null,"27.1.2.6","Юридическим лицам приобретающим электроэнергию в целях потребления на коммунально-бытовые нужды в населенных пунктах, жилых зонах при воинских частях и в целях потребления осужденными в помещениях для их содержания","2310",0]
[null,null,null,"27.1.2.7","Некоммерческим объединениям граждан (гаражно-строительные, гаражные кооперативы) и хозяйственные постройки физических лиц","2320",0]
[null,null,null,"27.2","по двухставочному тарифу (прочие потребители):","2330",0,{"$f":"H125","v":0},{"$f":"I125","v":0},{"$f":"J125","v":0},{"$f":"K125","v":0},null,null,null,null,770]
[null,null,null,"27.2.1","мощность (МВт), в том числе:","2340",0,null,null,null,null,null,null,null,null,780]
[null,null,null,"27.2.1.1"," опосредованно подключенным к шинам генераторов (МВт)","2350",0]
[null,null,null,"27.2.2","компенсация потерь (тыс. кВт ч)","2360",0,null,null,null,null,null,null,null,null,790]
[null,null,null,"28","Оплачиваемый сетевыми организациями объем оказанных услуг по индивидуальному тарифу:","2370",76167.820000000007,{"$f":"SUM(H127:H128)","v":0},{"$f":"SUM(I127:I128)","v":0},{"$f":"SUM(J127:J128)","v":23975.132999999998},{"$f":"SUM(K127:K128)","v":52192.687000000005}]
[null,null,null,"28.1","по одноставочному тарифу","2380",0]
[null,null,null,"28.2","по двухставочному тарифу:","2390",76167.820000000007,{"$f":"H130","v":0},{"$f":"I130","v":0},{"$f":"J130","v":23975.132999999998},{"$f":"K130","v":52192.687000000005}]
[null,null,null,"28.2.1","мощность (МВт)","2400",14.75,null,null,14.75]
[null,null,null,"28.2.2","компенсация потерь (тыс. кВт ч)","2410",76167.820000000007,null,null,{"$f":"J35","v":23975.132999999998},{"$f":"K35","v":52192.687000000005}]
[null,null,null,"V. Стоимость услуг (тыс. руб.)"]
[null,null,null,"29","Стоимость услуг, оплачиваемая потребителями (конечными потребителями по прямым договорам и ТСО):","2420",0,{"$f":"SUM( H133:H134)","v":0},{"$f":"SUM( I133:I134)","v":0},{"$f":"SUM( J133:J134)","v":0},{"$f":"SUM( K133:K134)","v":0},null,null,null,null,800]
[null,null,null,"29.1","по одноставочному тарифу","2430",0,null,null,null,null,null,null,null,null,810]
[null,null,null,"29.2","по двухставочному тарифу:","2440",0,{"$f":"H135+H137","v":0},{"$f":"I135+I137","v":0},{"$f":"J135+J137","v":0},{"$f":"K135+K137","v":0},null,null,null,null,820]
[null,null,null,"29.2.1","мощность, в том числе:","2450",0,null,null,null,null,null,null,null,null,830]
[null,null,null,"29.2.1.1","опосредованно потребителям с шин генераторов","2460",0]
[null,null,null,"29.2.2","компенсация потерь","2470",0,null,null,null,null,null,null,null,null,840]
[null,null,null,"30","Стоимость услуг, оплачиваемая ГП, ЭСО:","2480",0,{"$f":"SUM( H139+H144)","v":0},{"$f":"SUM( I139+I144)","v":0},{"$f":"SUM( J139+J144)","v":0},{"$f":"SUM( K139+K144)","v":0},null,null,null,null,850]
[null,null,null,"30.1","по одноставочному тарифу","2490",{"$f":"SUM(H139:K139)","v":0},{"$f":"SUM( H140:H141)","v":0},{"$f":"SUM( I140:I141)","v":0},{"$f":"SUM( J140:J141)","v":0},{"$f":"SUM( K140:K141)","v":0},null,null,null,null,860]
[null,null,null,"30.1.1","прочим потребителям","2500",0]
[null,null,null,"30.1.2","населению и приравненным к нему категориям потребителей:","2510",0,{"$f":"H142+H143","v":0},{"$f":"I142+I143","v":0},{"$f":"J142+J143","v":0},{"$f":"K142+K143","v":0}]
[null,null,null,"30.1.2.1","в пределах социальной нормы потребления","2520",0]
[null,null,null,"30.1.2.2","сверх социальной нормы потребления ","2530",0]
[null,null,null,"30.2","по двухставочному тарифу (прочие потребители):","2540",0,{"$f":"H145+H147","v":0},{"$f":"I145+I147","v":0},{"$f":"J145+J147","v":0},{"$f":"K145+K147","v":0},null,null,null,null,870]
[null,null,null,"30.2.1","мощность, в том числе:","2550",0,null,null,null,null,null,null,null,null,880]
[null,null,null,"30.2.1.1","опосредованно потребителям с шин генераторов","2560",0]
[null,null,null,"30.2.2","компенсация потерь","2570",0,null,null,null,null,null,null,null,null,890]
[null,null,null,"31","Стоимость услуг, оплачиваемых сетевыми организациями по индивидуальному тарифу:","2580",65775.722729999994,{"$f":"SUM( H149:H150)","v":0},{"$f":"SUM( I149:I150)","v":0},{"$f":"SUM( J149:J150)","v":65775.722729999994},{"$f":"SUM( K149:K150)","v":0},null,null,null,null,900]
[null,null,null,"31.1","по одноставочному тарифу","2590",0]
[null,null,null,"31.2","по двухставочному тарифу:","2600",65775.722729999994,{"$f":"H151+H152","v":0},{"$f":"I151+I152","v":0},{"$f":"J151+J152","v":65775.722729999994},{"$f":"K151+K152","v":0}]
[null,null,null,"31.2.1","мощность","2610",29220.245579999999,null,null,29220.245579999999,null,null,null,null,null,"920"]
[null,null,null,"31.2.2","компенсация потерь","2620",36555.477149999999,null,null,36555.477149999999,null,null,null,null,null,"910"]
[]
[null,null,null,null,"Должностное лицо, ответственное за",{"$f":"IF(Титульный!G45=\"\",\"\",Титульный!G45)","v":"заместитель генерального директора"},null,null,{"$f":"IF(Титульный!G44=\"\",\"\",Титульный!G44)","v":"Маркадеева Анна Владимировна"}]
[null,null,null,null,"предоставление статистической информации","(должность)",null,null,"(Ф.И.О.)",null,null,null,"(подпись)"]
[null,null,null,null,"(лицо, уполномоченное предоставлять"]
[null,null,null,null,"статистическую информацию от имени",{"$f":"IF(Титульный!G46=\"\",\"\",Титульный!G46)","v":"89156362155"},null,null,null,"«____» _________20__ год"]
[null,null,null,null,"юридического лица)","(номер контактного телефона)",null,null,null,"(дата составления документа)"]

{"sheet":"Комментарии","index":4,"n_rows":14,"n_cols":5,"rows_kept":14,"cut":false,"hidden":false,"merged":[]}
[]
[]
[]
[]
[]
[]
[]
[null,null,null,"Комментарии"]
[null,null,null,{"$f":"IF(org=\"\",\"Не определено\",org)","v":"ООО \"Горэлектро\""}]
[]
[null,null,null,"№ п/п","Комментарий"]
[null,null,null,1,2]
[null,null,null,0]
[null,null,null,null,"Добавить комментарий"]

{"sheet":"Проверка","index":5,"n_rows":5,"n_cols":4,"rows_kept":5,"cut":false,"hidden":false,"merged":[[1,1,1,3]]}
[]
[null,"Результат проверки"]
[null,{"$f":"IF(org=\"\",\"Не определено\",org)","v":"ООО \"Горэлектро\""}]
[]
[null,"Ссылка","Причина","Статус"]

{"sheet":"Statistic","index":6,"n_rows":66,"n_cols":3,"rows_kept":66,"cut":false,"hidden":true,"merged":[]}
[66]
["06.09.2018 19:26:20","14.0","Windows (32-bit) NT 6.01"]
["11.09.2018 18:16:52","14.0","Windows (32-bit) NT 6.01"]
["11.09.2018 20:57:11","14.0","Windows (32-bit) NT 6.01"]
["12.09.2018 09:35:26","14.0","Windows (32-bit) NT 6.01"]
["12.09.2018 10:24:58","14.0","Windows (32-bit) NT 6.01"]
["12.09.2018 16:27:05","14.0","Windows (32-bit) NT 6.01"]
["13.09.2018 15:09:23","14.0","Windows (32-bit) NT 6.01"]
["13.09.2018 16:04:22","14.0","Windows (32-bit) NT 6.01"]
["13.09.2018 16:05:18","14.0","Windows (32-bit) NT 6.01"]
["13.09.2018 19:14:38","14.0","Windows (32-bit) NT 6.01"]
["14.09.2018 11:13:01","14.0","Windows (32-bit) NT 6.01"]
["14.09.2018 11:18:37","14.0","Windows (32-bit) NT 6.01"]
["17.09.2018 21:09:54","14.0","Windows (32-bit) NT 6.01"]
["18.09.2018 10:38:31","14.0","Windows (32-bit) NT 6.01"]
["18.09.2018 12:43:39","14.0","Windows (32-bit) NT 6.01"]
["18.09.2018 12:47:52","14.0","Windows (32-bit) NT 6.01"]
["18.09.2018 12:54:00","14.0","Windows (32-bit) NT 6.01"]
["18.09.2018 12:57:51","14.0","Windows (32-bit) NT 6.01"]
["18.09.2018 13:09:47","14.0","Windows (32-bit) NT 6.01"]
["18.09.2018 13:11:28","14.0","Windows (32-bit) NT 6.01"]
["18.09.2018 13:28:28","14.0","Windows (32-bit) NT 6.01"]
["18.09.2018 15:52:57","14.0","Windows (32-bit) NT 6.01"]
["18.09.2018 17:01:38","14.0","Windows (32-bit) NT 6.01"]
["18.09.2018 18:14:48","14.0","Windows (32-bit) NT 6.01"]
["19.09.2018 16:09:09","14.0","Windows (32-bit) NT 6.01"]
["19.09.2018 18:23:43","14.0","Windows (32-bit) NT 6.01"]
["20.09.2018 10:53:47","14.0","Windows (32-bit) NT 6.01"]
["20.09.2018 11:00:09","14.0","Windows (32-bit) NT 6.01"]
["20.09.2018 11:51:55","14.0","Windows (32-bit) NT 6.01"]
["20.09.2018 12:24:20","14.0","Windows (32-bit) NT 6.01"]
["20.09.2018 15:06:45","14.0","Windows (32-bit) NT 6.01"]
["20.09.2018 15:26:56","14.0","Windows (32-bit) NT 6.01"]
["21.09.2018 13:25:15","14.0","Windows (32-bit) NT 6.01"]
["21.09.2018 15:22:58","14.0","Windows (32-bit) NT 6.01"]
["21.09.2018 15:42:42","14.0","Windows (32-bit) NT 6.01"]
["21.09.2018 16:03:56","14.0","Windows (32-bit) NT 6.01"]
["21.09.2018 20:18:40","14.0","Windows (32-bit) NT 6.01"]
["22.09.2018 17:11:07","14.0","Windows (32-bit) NT 6.01"]
["23.09.2018 20:21:15","14.0","Windows (32-bit) NT 6.01"]
["24.09.2018 14:40:14","14.0","Windows (32-bit) NT 6.01"]
["25.09.2018 14:58:01","14.0","Windows (32-bit) NT 6.01"]
["25.09.2018 19:01:11","14.0","Windows (32-bit) NT 6.01"]
["03.10.2018 12:23:00","14.0","Windows (32-bit) NT 6.01"]
["16.07.2019 11:12:16","12.0","Windows (32-bit) NT 6.01"]
["16.07.2019 11:42:48","12.0","Windows (32-bit) NT 6.01"]
["15.08.2019 10:22:13","12.0","Windows (32-bit) NT 6.01"]
["15.08.2019 10:23:39","12.0","Windows (32-bit) NT 6.01"]
["12.09.2019 11:24:04","12.0","Windows (32-bit) NT 6.01"]
["15.10.2019 15:50:00","12.0","Windows (32-bit) NT 6.01"]
["15.11.2019 11:36:41","12.0","Windows (32-bit) NT 6.01"]
["17.12.2019 11:17:58","12.0","Windows (32-bit) NT 6.01"]
["17.12.2019 11:19:00","12.0","Windows (32-bit) NT 6.01"]
["17.12.2019 11:19:51","12.0","Windows (32-bit) NT 6.01"]
["15.01.2020 14:34:31","12.0","Windows (32-bit) NT 6.01"]
["14.02.2020 10:14:48","12.0","Windows (32-bit) NT 6.01"]
["17.03.2020 11:10:24","12.0","Windows (32-bit) NT 6.01"]
["20.04.2020 10:44:37","12.0","Windows (32-bit) NT 6.01"]
["20.05.2020 08:30:41","12.0","Windows (32-bit) NT 6.01"]
["15.07.2020 09:37:10","12.0","Windows (32-bit) NT 6.01"]
["15.07.2020 09:45:35","12.0","Windows (32-bit) NT 6.01"]
["14.08.2020 09:59:51","12.0","Windows (32-bit) NT 6.01"]
["21.09.2020 10:17:49","12.0","Windows (32-bit) NT 6.01"]
["15.10.2020 09:25:22","12.0","Windows (32-bit) NT 6.01"]
["16.11.2020 09:40:06","12.0","Windows (32-bit) NT 6.01"]
["25.03.2021 13:01:13","15.0","Windows (32-bit) NT 6.01"]

{"sheet":"TEHSHEET","index":7,"n_rows":86,"n_cols":7,"rows_kept":86,"cut":false,"hidden":true,"merged":[]}
[null,"Алтайский край",null,"MONTH","YEAR","DaNet","type_report"]
[0,"Амурская область",null,"январь",2018,"Да","В целом по организации"]
[null,"Архангельская область",null,"февраль",2019,"Нет","По обособленному подразделению"]
[null,"Астраханская область",null,"март",2020]
[null,"Белгородская область",null,"апрель",2021]
[null,"Брянская область",null,"май",2022]
[null,"Владимирская область",null,"июнь"]
[null,"Волгоградская область",null,"июль"]
[null,"Вологодская область",null,"август"]
[null,"Воронежская область",null,"сентябрь"]
[null,"г.Байконур",null,"октябрь"]
[null,"г. Москва",null,"ноябрь"]
[null,"г.Санкт-Петербург",null,"декабрь"]
[null,"г.Севастополь",null,"год"]
[null,"Еврейская автономная область"]
[null,"Забайкальский край"]
[null,"Ивановская область"]
[null,"Иркутская область"]
[null,"Кабардино-Балкарская республика"]
[null,"Калининградская область"]
[null,"Калужская область"]
[null,"Камчатский край",null,"URL_FORMAT"]
[null,"Карачаево-Черкесская республика",null,"https://portal.eias.ru/Portal/DownloadPage.aspx?type=12&guid=????????-????-????-????-????????????"]
[null,"Кемеровская область",null,"MSG_URL"]
[null,"Кировская область",null,{"$f":"\"Необходимо ввести ссылку на обосновывающие материалы в формате: \"\"\" & URL_FORMAT & \"\"\" (смотри раздел \"\"Методология заполнения\"\" листа \"\"Инструкция\"\")\"","v":"Необходимо ввести ссылку на обосновывающие материалы в формате: \"https://portal.eias.ru/Portal/DownloadPage.aspx?type=12&guid=????????-????-????-????-????????????\" (смотри раздел \"Методология заполнения\" листа \"Инструкция\")"}]
[null,"Костромская область"]
[null,"Краснодарский край"]
[null,"Красноярский край"]
[null,"Курганская область"]
[null,"Курская область"]
[null,"Ленинградская область"]
[null,"Липецкая область"]
[null,"Магаданская область"]
[null,"Московская область"]
[null,"Мурманская область"]
[null,"Ненецкий автономный округ"]
[null,"Нижегородская область"]
[null,"Новгородская область"]
[null,"Новосибирская область"]
[null,"Омская область"]
[null,"Оренбургская область"]
[null,"Орловская область"]
[null,"Пензенская область"]
[null,"Пермский край"]
[null,"Приморский край"]
[null,"Псковская область"]
[null,"Республика Адыгея"]
[null,"Республика Алтай"]
[null,"Республика Башкортостан"]
[null,"Республика Бурятия"]
[null,"Республика Дагестан"]
[null,"Республика Ингушетия"]
[null,"Республика Калмыкия"]
[null,"Республика Карелия"]
[null,"Республика Коми"]
[null,"Республика Крым"]
[null,"Республика Марий Эл"]
[null,"Республика Мордовия"]
[null,"Республика Саха (Якутия)"]
[null,"Республика Северная Осетия-Алания"]
[null,"Республика Татарстан"]
[null,"Республика Тыва"]
[null,"Республика Хакасия"]
[null,"Ростовская область"]
[null,"Рязанская область"]
[null,"Самарская область"]
[null,"Саратовская область"]
[null,"Сахалинская область"]
[null,"Свердловская область"]
[null,"Смоленская область"]
[null,"Ставропольский край"]
[null,"Тамбовская область"]
[null,"Тверская область"]
[null,"Томская область"]
[null,"Тульская область"]
[null,"Тюменская область"]
[null,"Удмуртская республика"]
[null,"Ульяновская область"]
[null,"Хабаровский край"]
[null,"Ханты-Мансийский автономный округ"]
[null,"Челябинская область"]
[null,"Чеченская республика"]
[null,"Чувашская республика"]
[null,"Чукотский автономный округ"]
[null,"Ямало-Ненецкий автономный округ"]
[null,"Ярославская область"]

{"sheet":"et_union","index":8,"n_rows":5,"n_cols":7,"rows_kept":5,"cut":false,"hidden":true,"merged":[]}
[]
["et_com"]
[null,null,"О",1]
["et_org"]
[null,null,null,null,null,null,{"$f":"SUM(H5:K5)","v":0}]

{"sheet":"AllSheetsInThisWorkbook","index":9,"n_rows":24,"n_cols":2,"rows_kept":24,"cut":false,"hidden":true,"merged":[]}
["Расчетные листы","Скрытые листы"]
["Инструкция","Statistic"]
["Лог обновления","TEHSHEET"]
["Титульный","et_union"]
["Отпуск ЭЭ сет организациями","AllSheetsInThisWorkbook"]
["Комментарии","mod_01"]
["Проверка","mod_11"]
[null,"modComm"]
[null,"modListProv"]
[null,"modButton"]
[null,"modInstruction"]
[null,"modHTTP"]
[null,"REESTR_ORG"]
[null,"REESTR_FIL"]
[null,"REESTR_MO"]
[null,"REESTR_EGRUL"]
[null,"modfrmRegion"]
[null,"modfrmReestr"]
[null,"modfrmFindEGRUL"]
[null,"modfrmCheckUpdates"]
[null,"modReestr"]
[null,"modUpdTemplMain"]
[null,"modHyperlink"]
[null,"modClassifierValidate"]

{"sheet":"mod_01","index":10,"n_rows":0,"n_cols":0,"rows_kept":0,"cut":false,"hidden":true,"merged":[]}

{"sheet":"mod_11","index":11,"n_rows":0,"n_cols":0,"rows_kept":0,"cut":false,"hidden":true,"merged":[]}

{"sheet":"modComm","index":12,"n_rows":0,"n_cols":0,"rows_kept":0,"cut":false,"hidden":true,"merged":[]}

{"sheet":"modListProv","index":13,"n_rows":0,"n_cols":0,"rows_kept":0,"cut":false,"hidden":true,"merged":[]}

{"sheet":"modButton","index":14,"n_rows":0,"n_cols":0,"rows_kept":0,"cut":false,"hidden":true,"merged":[]}

{"sheet":"modInstruction","index":15,"n_rows":0,"n_cols":0,"rows_kept":0,"cut":false,"hidden":true,"merged":[]}

{"sheet":"modHTTP","index":16,"n_rows":0,"n_cols":0,"rows_kept":0,"cut":false,"hidden":true,"merged":[]}

{"sheet":"REESTR_ORG","index":17,"n_rows":59,"n_cols":19,"rows_kept":59,"cut":false,"hidden":true,"merged":[]}
[null,"REGION_ID","REGION_NAME","MR_NAME","OKTMR_NAME","MO_NAME","OKTMO_NAME","RST_ORG_ID","ORG_NAME","INN_NAME","KPP_NAME","ORG_START_DATE","ORG_END_DATE","VDET_START_DATE","VDET_END_DATE","VDET_NAME","VDET_NAME_LIST","VDET_FULL_NAME_LIST","HAS_TARIFF"]
[1,"2599","Смоленская область",null,null,null,null,"26524393","АО \"АтомЭнергоСбыт\"","7704228075","772501001",null,null,null,null,null,"ГП","/Электроэнергетика/Сбыт ЭЭ/ГП","Y"]
[2,"2599","Смоленская область",null,null,null,null,"28943588","АО \"Атомэнергопромсбыт\"","7725828549","770501001",null,null,null,null,null,"Нерегулируемый сбыт","/Электроэнергетика/Сбыт ЭЭ/Нерегулируемый сбыт","Y"]
[3,"2599","Смоленская область",null,null,null,null,"26318885","АО \"Газпром энергосбыт\"","7705750968","772901001",null,null,null,null,null,"Нерегулируемый сбыт","/Электроэнергетика/Сбыт ЭЭ/Нерегулируемый сбыт","Y"]
[4,"2599","Смоленская область",null,null,null,null,"26318876","АО \"Мосэнергосбыт\"","7736520080","997650001",null,null,null,null,null,"Нерегулируемый сбыт","/Электроэнергетика/Сбыт ЭЭ/Нерегулируемый сбыт","Y"]
[5,"2599","Смоленская область",null,null,null,null,"27215840","АО \"Оборонэнерго\" филиал \"Волго-Вятский\"","7704726225","526343001","01-09-2011 00:00:00",null,null,null,null,"РСО","/Электроэнергетика/Передача ЭЭ/РСО","Y"]
[6,"2599","Смоленская область",null,null,null,null,"26617350","АО \"Оборонэнергосбыт\"","7704731218","773043001","23-03-2010 00:00:00",null,null,null,null,"Нерегулируемый сбыт","/Электроэнергетика/Сбыт ЭЭ/Нерегулируемый сбыт","Y"]
[7,"2599","Смоленская область",null,null,null,null,"26617350","АО \"Оборонэнергосбыт\"","7704731218","773043001","23-03-2010 00:00:00",null,null,null,null,"ГП","/Электроэнергетика/Сбыт ЭЭ/ГП","Y"]
[8,"2599","Смоленская область",null,null,null,null,"26375106","АО \"Смоленский авиационный завод\"","6729001476","672950001",null,null,null,null,null,"РСО","/Электроэнергетика/Передача ЭЭ/РСО","Y"]
[9,"2599","Смоленская область",null,null,null,null,"26321971","АО \"ЭлС\"","6724007210","672401001",null,null,null,null,null,"РСО","/Электроэнергетика/Передача ЭЭ/РСО","Y"]
[10,"2599","Смоленская область",null,null,null,null,"26322014","ГУП города Москвы \"Литейно-прокатный завод\" (производственный комплекс в г. Ярцево)","7721261080","772101001",null,null,null,null,null,"РСО","/Электроэнергетика/Передача ЭЭ/РСО","Y"]
[11,"2599","Смоленская область",null,null,null,null,"26820307","ЗАО \"Дорогобужхимстрой\"","6730032687","673001001",null,null,null,null,null,"РСО","/Электроэнергетика/Передача ЭЭ/РСО","Y"]
[12,"2599","Смоленская область",null,null,null,null,"27828121","ЗАО \"Монтажзаготовка\"","6714000254","671401001",null,null,null,null,null,"РСО","/Электроэнергетика/Передача ЭЭ/РСО","Y"]
[13,"2599","Смоленская область",null,null,null,null,"26814742","ЗАО \"Транссервисэнерго\"","7710430593","771001001",null,null,null,null,null,"Нерегулируемый сбыт","/Электроэнергетика/Сбыт ЭЭ/Нерегулируемый сбыт","Y"]
[14,"2599","Смоленская область",null,null,null,null,"27554214","ЗАО трест \"Смоленскагропромстрой\"","6731020250","673101001",null,null,null,null,null,"РСО","/Электроэнергетика/Передача ЭЭ/РСО","Y"]
[15,"2599","Смоленская область",null,null,null,null,"27698776","ИП Петроченков Д.М.","673009302235","отсутствует",null,null,null,null,null,"РСО","/Электроэнергетика/Передача ЭЭ/РСО","Y"]
[16,"2599","Смоленская область",null,null,null,null,"27675714","ИП Свидлер В.М.","672900503080","отсутствует",null,null,null,null,null,"РСО","/Электроэнергетика/Передача ЭЭ/РСО","Y"]
[17,"2599","Смоленская область",null,null,null,null,"27294890","ИП Сорин Владимир Яковлевич","673100004037","отсутствует",null,null,null,null,null,"РСО","/Электроэнергетика/Передача ЭЭ/РСО","Y"]
[18,"2599","Смоленская область",null,null,null,null,"26524507","МУП \"Кутузовское\"","6706005996","670601001",null,null,null,null,null,"РСО","/Электроэнергетика/Передача ЭЭ/РСО","Y"]
[19,"2599","Смоленская область",null,null,null,null,"26505895","Московская дирекция по энергообеспечению Трансэнерго - филиал ОАО \"РЖД\"","7708503727","770845041",null,null,null,null,null,"РСО","/Электроэнергетика/Передача ЭЭ/РСО","Y"]
[20,"2599","Смоленская область",null,null,null,null,"26318852","ОАО \"Смоленскэнергосбыт\"","6731048633","673101001",null,null,null,null,null,"ГП","/Электроэнергетика/Сбыт ЭЭ/ГП","Y"]
[21,"2599","Смоленская область",null,null,null,null,"26569253","ОАО «Московское городское энергосбытовое предприятие»","7743628060","774301001","14-10-2010 00:00:00",null,null,null,null,"Нерегулируемый сбыт","/Электроэнергетика/Сбыт ЭЭ/Нерегулируемый сбыт","Y"]
[22,"2599","Смоленская область",null,null,null,null,"28266261","ОГУЭПП \"Смоленскоблкоммунэнерго\"","6731000014","673101001",null,null,null,null,null,"РСО","/Электроэнергетика/Передача ЭЭ/РСО","Y"]
[23,"2599","Смоленская область",null,null,null,null,"26766814","ООО \"ГРИНН Энергосбыт\"","4632116134","463201001",null,null,null,null,null,"Нерегулируемый сбыт","/Электроэнергетика/Сбыт ЭЭ/Нерегулируемый сбыт","Y"]
[24,"2599","Смоленская область",null,null,null,null,"28505959","ООО \"Горэлектро\"","6732066794","673201001",null,null,null,null,null,"РСО","/Электроэнергетика/Передача ЭЭ/РСО","Y"]
[25,"2599","Смоленская область",null,null,null,null,"28497180","ООО \"Дорогобужская ТЭЦ\"","6726018979","672601001",null,null,null,null,null,"Комбинированная выработка","/Электроэнергетика/Производство ЭЭ/Комбинированная выработка","Y"]
[26,"2599","Смоленская область",null,null,null,null,"28497180","ООО \"Дорогобужская ТЭЦ\"","6726018979","672601001",null,null,null,null,null,"Комбинированная выработка :: Некомбинированная выработка","/Электроэнергетика/Производство ЭЭ/Комбинированная выработка :: /Электроэнергетика/Производство ЭЭ/Некомбинированная выработка","Y"]
[27,"2599","Смоленская область",null,null,null,null,"27828141","ООО \"Здание Амипресс\"","6730054881","673001001",null,null,null,null,null,"РСО","/Электроэнергетика/Передача ЭЭ/РСО","Y"]
[28,"2599","Смоленская область",null,null,null,null,"31340189","ООО \"МСК Энерго\"","7725567512","772901001",null,null,null,null,null,"Нерегулируемый сбыт","/Электроэнергетика/Сбыт ЭЭ/Нерегулируемый сбыт","Y"]
[29,"2599","Смоленская область",null,null,null,null,"28147378","ООО \"МагнитЭнерго\"","7715902899","231001001",null,null,null,null,null,"Нерегулируемый сбыт","/Электроэнергетика/Сбыт ЭЭ/Нерегулируемый сбыт","Y"]
[30,"2599","Смоленская область",null,null,null,null,"26842490","ООО \"Металлэнергофинанс\"","4217039402","775050001","17-09-2002 00:00:00",null,null,null,null,"Нерегулируемый сбыт","/Электроэнергетика/Сбыт ЭЭ/Нерегулируемый сбыт","Y"]
[31,"2599","Смоленская область",null,null,null,null,"31368700","ООО \"Парус\"","6623122216","672701001",null,null,null,null,null,"РСО","/Электроэнергетика/Передача ЭЭ/РСО","Y"]
[32,"2599","Смоленская область",null,null,null,null,"26447338","ООО \"Прогресс плюс\"","6725011177","672501001",null,null,null,null,null,"РСО","/Электроэнергетика/Передача ЭЭ/РСО","Y"]
[33,"2599","Смоленская область",null,null,null,null,"31389933","ООО \"Прогресс-Плюс\"","6725033491","672501001","01-01-2020 00:00:00",null,null,null,null,"РСО","/Электроэнергетика/Передача ЭЭ/РСО","Y"]
[34,"2599","Смоленская область",null,null,null,null,"28828073","ООО \"Промэнергосеть\"","6732063426","673201001",null,null,null,null,null,"РСО","/Электроэнергетика/Передача ЭЭ/РСО","Y"]
[35,"2599","Смоленская область",null,null,null,null,"28113333","ООО \"РН-Энерго\"","7706525041","774850001","26-02-2004 00:00:00",null,null,null,null,"Нерегулируемый сбыт","/Электроэнергетика/Сбыт ЭЭ/Нерегулируемый сбыт","Y"]
[36,"2599","Смоленская область",null,null,null,null,"28494201","ООО \"РУСЭНЕРГО\"","4401144416","770501001",null,null,null,null,null,"Нерегулируемый сбыт","/Электроэнергетика/Сбыт ЭЭ/Нерегулируемый сбыт","Y"]
[37,"2599","Смоленская область",null,null,null,null,"26502786","ООО \"Русэнергосбыт\"","7706284124","770401001",null,null,null,null,null,"Нерегулируемый сбыт","/Электроэнергетика/Сбыт ЭЭ/Нерегулируемый сбыт","Y"]
[38,"2599","Смоленская область",null,null,null,null,"28041460","ООО \"ТСО № 3\"","6732038719","673201001",null,null,null,null,null,"РСО","/Электроэнергетика/Передача ЭЭ/РСО","Y"]
[39,"2599","Смоленская область",null,null,null,null,"26497668","ООО \"Транснефтьэнерго\"","7703552167","772301001","01-07-2009 00:00:00",null,null,null,null,"Нерегулируемый сбыт","/Электроэнергетика/Сбыт ЭЭ/Нерегулируемый сбыт","Y"]
[40,"2599","Смоленская область",null,null,null,null,"27827982","ООО \"Фирма \"Смоленскгазсвязьавтоматика\"","6731032697","673101001",null,null,null,null,null,"РСО","/Электроэнергетика/Передача ЭЭ/РСО","Y"]
[41,"2599","Смоленская область",null,null,null,null,"26804329","ООО \"ЭТС\"","6732056933","673201001",null,null,null,null,null,"РСО","/Электроэнергетика/Передача ЭЭ/РСО","Y"]
[42,"2599","Смоленская область",null,null,null,null,"30882200","ООО \"Электро\"","6714045777","671401001",null,null,null,null,null,"РСО","/Электроэнергетика/Передача ЭЭ/РСО","Y"]
[43,"2599","Смоленская область",null,null,null,null,"28980763","ООО \"Электро-сетевая компания \"ЭНЕРГО\"","7730122371","773001001","26-03-2015 00:00:00",null,null,null,null,"РСО","/Электроэнергетика/Передача ЭЭ/РСО","Y"]
[44,"2599","Смоленская область",null,null,null,null,"28266314","ООО \"Электросеть-Сафоново\"","6732053481","673201001",null,null,null,null,null,"РСО","/Электроэнергетика/Передача ЭЭ/РСО","Y"]
[45,"2599","Смоленская область",null,null,null,null,"30377796","ООО \"Электросеть-Смоленск\"","6732104513","673201001",null,null,null,null,null,"РСО","/Электроэнергетика/Передача ЭЭ/РСО","Y"]
[46,"2599","Смоленская область",null,null,null,null,"26820304","ООО \"Электросетьремонт\"","6730081973","673001001",null,null,null,null,null,"РСО","/Электроэнергетика/Передача ЭЭ/РСО","Y"]
[47,"2599","Смоленская область",null,null,null,null,"31414561","ООО \"Энергосбытовая компания \"Горкунов\"","5433970181","543301001","01-10-2019 00:00:00",null,null,null,null,"Нерегулируемый сбыт","/Электроэнергетика/Сбыт ЭЭ/Нерегулируемый сбыт","Y"]
[48,"2599","Смоленская область",null,null,null,null,"26381227","ПАО \"Дорогобуж\"","6704000505","670401001",null,null,null,null,null,"Нерегулируемый сбыт","/Электроэнергетика/Сбыт ЭЭ/Нерегулируемый сбыт","Y"]
[49,"2599","Смоленская область",null,null,null,null,"26322017","ПАО \"МРСК центра\" (на территории Смоленской области)","6901067107","673102001",null,null,null,null,null,"РСО :: ГП","/Электроэнергетика/Передача ЭЭ/РСО :: /Электроэнергетика/Сбыт ЭЭ/ГП","Y"]
[50,"2599","Смоленская область",null,null,null,null,"26832761","ПАО \"ФСК ЕЭС\"","4716016979","772801001",null,null,null,null,null,"РСО","/Электроэнергетика/Передача ЭЭ/РСО","Y"]
[51,"2599","Смоленская область",null,null,null,null,"27954259","ПАО \"ФСК ЕЭС\"","4716016979","997450001",null,null,null,null,null,"РСО","/Электроэнергетика/Передача ЭЭ/РСО","Y"]
[52,"2599","Смоленская область",null,null,null,null,"27651553","Смоленское областное отделение филиала \"Центральный\"","7704731218","673245001",null,null,null,null,null,"Нерегулируемый сбыт","/Электроэнергетика/Сбыт ЭЭ/Нерегулируемый сбыт","Y"]
[53,"2599","Смоленская область",null,null,null,null,"26361217","Филиал \"Смоленская ГРЭС\" ПАО \"Юнипро\"","8602067092","670502001",null,null,null,null,null,"Комбинированная выработка :: Некомбинированная выработка","/Электроэнергетика/Производство ЭЭ/Комбинированная выработка :: /Электроэнергетика/Производство ЭЭ/Некомбинированная выработка","Y"]
[54,"2599","Смоленская область",null,null,null,null,"30853677","Филиал «СмоленскАтомЭнергоСбыт» АО «АтомЭнергоСбыт»","7704228075","673243001",null,null,null,null,null,"ГП","/Электроэнергетика/Сбыт ЭЭ/ГП","Y"]
[55,"2599","Смоленская область",null,null,null,null,"27301763","Филиал «Юго-Западный» АО «Оборонэнерго»","7704726225","575243001",null,null,null,null,null,"РСО","/Электроэнергетика/Передача ЭЭ/РСО","Y"]
[56,"2599","Смоленская область",null,null,null,null,"26445955","Филиал АО \"Концерн Росэнергоатом\" \"Смоленская атомная станция\"","7721632827","672443001",null,null,null,null,null,"Комбинированная выработка","/Электроэнергетика/Производство ЭЭ/Комбинированная выработка","Y"]
[57,"2599","Смоленская область",null,null,null,null,"26447259","Филиал ПАО \"Квадра\" - \"Смоленская генерация\"","6829012680","673243001",null,null,null,null,null,"Комбинированная выработка :: Некомбинированная выработка","/Электроэнергетика/Производство ЭЭ/Комбинированная выработка :: /Электроэнергетика/Производство ЭЭ/Некомбинированная выработка","Y"]
[58,"2599","Смоленская область",null,null,null,null,"26513518","Центральный филиал ООО «Газпром энерго»","7736186950","504343001","07-02-2006 00:00:00",null,null,null,null,"РСО","/Электроэнергетика/Передача ЭЭ/РСО","Y"]

{"sheet":"REESTR_FIL","index":18,"n_rows":1,"n_cols":5,"rows_kept":1,"cut":false,"hidden":true,"merged":[]}
["МР","МО","МО_ОКТМО","МР","ИМЯ ДИАПАЗОНА"]

{"sheet":"REESTR_MO","index":19,"n_rows":258,"n_cols":6,"rows_kept":258,"cut":false,"hidden":true,"merged":[]}
["МР","МО","МО_ОКТМО","МО_ТИП","МР","ИМЯ ДИАПАЗОНА"]
["Велижский муниципальный район","Беляевское","66603410","сельское поселение","Велижский муниципальный район","MO_LIST_2"]
["Велижский муниципальный район","Будницкое","66603415","сельское поселение","Вяземский муниципальный район","MO_LIST_3"]
["Велижский муниципальный район","Велижский муниципальный район","66603000","муниципальный район","Гагаринский муниципальный район","MO_LIST_4"]
["Велижский муниципальный район","Велижское","66603101","городское поселение, в состав которого входит город","Глинковский муниципальный район","MO_LIST_5"]
["Велижский муниципальный район","Заозерское","66603420","сельское поселение","Город Десногорск","MO_LIST_6"]
["Велижский муниципальный район","Крутовское","66603480","сельское поселение","Город Смоленск","MO_LIST_7"]
["Велижский муниципальный район","Печенковское","66603460","сельское поселение","Демидовский муниципальный район","MO_LIST_8"]
["Велижский муниципальный район","Погорельское","66603450","сельское поселение","Дорогобужский муниципальный район","MO_LIST_9"]
["Велижский муниципальный район","Селезневское","66603470","сельское поселение","Духовщинский муниципальный район","MO_LIST_10"]
["Велижский муниципальный район","Ситьковское","66603440","сельское поселение","Ельнинский муниципальный район","MO_LIST_11"]
["Вяземский муниципальный район","Андрейковское","66605404","сельское поселение","Ершичский муниципальный район","MO_LIST_12"]
["Вяземский муниципальный район","Вяземский муниципальный район","66605000","муниципальный район","Кардымовский муниципальный район","MO_LIST_13"]
["Вяземский муниципальный район","Вяземское","66605101","городское поселение, в состав которого входит город","Краснинский муниципальный район","MO_LIST_14"]
["Вяземский муниципальный район","Вязьма-Брянское сельское поселение","66605408","сельское поселение","Монастырщинский муниципальный район","MO_LIST_15"]
["Вяземский муниципальный район","Кайдаковское","66605436","сельское поселение","Новодугинский муниципальный район","MO_LIST_16"]
["Вяземский муниципальный район","Новосельское","66605456","сельское поселение","Починковский муниципальный район","MO_LIST_17"]
["Вяземский муниципальный район","Семлевское","66605472","сельское поселение","Рославльский муниципальный район","MO_LIST_18"]
["Вяземский муниципальный район","Степаниковское","66605476","сельское поселение","Руднянский муниципальный район","MO_LIST_19"]
["Вяземский муниципальный район","Тумановское","66605480","сельское поселение","Сафоновский муниципальный район","MO_LIST_20"]
["Гагаринский муниципальный район","Акатовское","66608404","сельское поселение","Смоленский муниципальный район","MO_LIST_21"]
["Гагаринский муниципальный район","Ашковское","66608460","сельское поселение","Сычевский муниципальный район","MO_LIST_22"]
["Гагаринский муниципальный район","Баскаковское","66608408","сельское поселение","Темкинский муниципальный район","MO_LIST_23"]
["Гагаринский муниципальный район","Гагаринский муниципальный район","66608000","муниципальный район","Угранский муниципальный район","MO_LIST_24"]
["Гагаринский муниципальный район","Гагаринское","66608101","городское поселение, в состав которого входит город","Хиславичский муниципальный район","MO_LIST_25"]
["Гагаринский муниципальный район","Гагаринское сельское поселение","66608416","сельское поселение","Холм-Жирковский муниципальный район","MO_LIST_26"]
["Гагаринский муниципальный район","Ельнинское","66608480","сельское поселение","Шумячский муниципальный район","MO_LIST_27"]
["Гагаринский муниципальный район","Кармановское","66608424","сельское поселение","Ярцевский муниципальный район","MO_LIST_28"]
["Гагаринский муниципальный район","Мальцевское","66608412","сельское поселение"]
["Гагаринский муниципальный район","Никольское","66608456","сельское поселение"]
["Гагаринский муниципальный район","Покровское","66608448","сельское поселение"]
["Гагаринский муниципальный район","Потаповское","66608462","сельское поселение"]
["Гагаринский муниципальный район","Пречистенское","66608464","сельское поселение"]
["Гагаринский муниципальный район","Родомановское","66608444","сельское поселение"]
["Гагаринский муниципальный район","Самуйловское","66608468","сельское поселение"]
["Гагаринский муниципальный район","Серго-Ивановское","66608472","сельское поселение"]
["Гагаринский муниципальный район","Токаревское","66608476","сельское поселение"]
["Глинковский муниципальный район","Белохолмское","66609406","сельское поселение"]
["Глинковский муниципальный район","Бердниковское","66609408","сельское поселение"]
["Глинковский муниципальный район","Болтутинское","66609403","сельское поселение"]
["Глинковский муниципальный район","Глинковский муниципальный район","66609000","муниципальный район"]
["Глинковский муниципальный район","Глинковское","66609411","сельское поселение"]
["Глинковский муниципальный район","Доброминское","66609414","сельское поселение"]
["Глинковский муниципальный район","Ромодановское","66609430","сельское поселение"]
["Город Десногорск","Город Десногорск","66710000","городской округ"]
["Город Смоленск","Город Смоленск","66701000","городской округ"]
["Демидовский муниципальный район","Борковское","66611410","сельское поселение"]
["Демидовский муниципальный район","Демидовский муниципальный район","66611000","муниципальный район"]
["Демидовский муниципальный район","Демидовское","66611101","городское поселение, в состав которого входит город"]
["Демидовский муниципальный район","Заборьевское","66611445","сельское поселение"]
["Демидовский муниципальный район","Пржевальское","66611153","городское поселение, в состав которого входит поселок"]
["Демидовский муниципальный район","Слободское","66611487","сельское поселение"]
["Демидовский муниципальный район","Титовщинское","66611490","сельское поселение"]
["Дорогобужский муниципальный район","Алексинское","66614405","сельское поселение"]
["Дорогобужский муниципальный район","Верхнеднепровское","66614153","городское поселение, в состав которого входит поселок"]
["Дорогобужский муниципальный район","Дорогобужский муниципальный район","66614000","муниципальный район"]
["Дорогобужский муниципальный район","Дорогобужское","66614101","городское поселение, в состав которого входит город"]
["Дорогобужский муниципальный район","Михайловское","66614440","сельское поселение"]
["Дорогобужский муниципальный район","Усвятское","66614465","сельское поселение"]
["Духовщинский муниципальный район","Бабинское","66616404","сельское поселение"]
["Духовщинский муниципальный район","Бересневское","66616407","сельское поселение"]
["Духовщинский муниципальный район","Булгаковское","66616412","сельское поселение"]
["Духовщинский муниципальный район","Добринское","66616424","сельское поселение"]
["Духовщинский муниципальный район","Духовщинский муниципальный район","66616000","муниципальный район"]
["Духовщинский муниципальный район","Духовщинское","66616101","городское поселение, в состав которого входит город"]
["Духовщинский муниципальный район","Озерненское","66616155","городское поселение, в состав которого входит поселок"]
["Духовщинский муниципальный район","Пречистенское сельское поселение","66616448","сельское поселение"]
["Духовщинский муниципальный район","Третьяковское","66616468","сельское поселение"]
["Ельнинский муниципальный район","Бобровичское","66619416","сельское поселение"]
["Ельнинский муниципальный район","Ельнинский муниципальный район","66619000","муниципальный район"]
["Ельнинский муниципальный район","Ельнинское городское поселение","66619101","городское поселение, в состав которого входит город"]
["Ельнинский муниципальный район","Коробецкое","66619440","сельское поселение"]
["Ельнинский муниципальный район","Леонидовское","66619452","сельское поселение"]
["Ершичский муниципальный район","Воргинское","66621414","сельское поселение"]
["Ершичский муниципальный район","Ершичский муниципальный район","66621000","муниципальный район"]
["Ершичский муниципальный район","Ершичское","66621433","сельское поселение"]
["Ершичский муниципальный район","Кузьмичское","66621444","сельское поселение"]
["Ершичский муниципальный район","Руханское","66621466","сельское поселение"]
["Кардымовский муниципальный район","Березкинское","66623412","сельское поселение"]
["Кардымовский муниципальный район","Каменское","66623410","сельское поселение"]
["Кардымовский муниципальный район","Кардымовский муниципальный район","66623000","муниципальный район"]
["Кардымовский муниципальный район","Кардымовское","66623151","городское поселение, в состав которого входит поселок"]
["Кардымовский муниципальный район","Мольковское","66623418","сельское поселение"]
["Кардымовский муниципальный район","Нетризовское","66623422","сельское поселение"]
["Кардымовский муниципальный район","Первомайское","66623426","сельское поселение"]
["Кардымовский муниципальный район","Соловьевское","66623430","сельское поселение"]
["Кардымовский муниципальный район","Тюшинское","66623432","сельское поселение"]
["Кардымовский муниципальный район","Шокинское","66623428","сельское поселение"]
["Краснинский муниципальный район","Гусинское","66624430","сельское поселение"]
["Краснинский муниципальный район","Краснинский муниципальный район","66624000","муниципальный район"]
["Краснинский муниципальный район","Краснинское","66624151","городское поселение, в состав которого входит поселок"]
["Краснинский муниципальный район","Малеевское","66624445","сельское поселение"]
["Краснинский муниципальный район","Мерлинское","66624455","сельское поселение"]
["Монастырщинский муниципальный район","Александровское","66627405","сельское поселение"]
["Монастырщинский муниципальный район","Барсуковское","66627410","сельское поселение"]
["Монастырщинский муниципальный район","Гоголевское","66627420","сельское поселение"]
["Монастырщинский муниципальный район","Монастырщинский","66627151","городское поселение, в состав которого входит поселок"]
["Монастырщинский муниципальный район","Монастырщинский муниципальный район","66627000","муниципальный район"]
["Монастырщинский муниципальный район","Новомихайловское","66627460","сельское поселение"]
["Монастырщинский муниципальный район","Соболевское","66627480","сельское поселение"]
["Монастырщинский муниципальный район","Татарское","66627475","сельское поселение"]
["Новодугинский муниципальный район","Высоковское","66630410","сельское поселение"]
["Новодугинский муниципальный район","Днепровское","66630415","сельское поселение"]
["Новодугинский муниципальный район","Извековское","66630420","сельское поселение"]
["Новодугинский муниципальный район","Новодугинский муниципальный район","66630000","муниципальный район"]
["Новодугинский муниципальный район","Новодугинское","66630435","сельское поселение"]
["Новодугинский муниципальный район","Тесовское","66630440","сельское поселение"]
["Починковский муниципальный район","Васьковское","66633415","сельское поселение"]
["Починковский муниципальный район","Даньковское","66633422","сельское поселение"]
["Починковский муниципальный район","Ивановское","66633425","сельское поселение"]
["Починковский муниципальный район","Климщинское","66633430","сельское поселение"]
["Починковский муниципальный район","Княжинское","66633435","сельское поселение"]
["Починковский муниципальный район","Краснознаменское","66633440","сельское поселение"]
["Починковский муниципальный район","Ленинское","66633445","сельское поселение"]
["Починковский муниципальный район","Лосненское","66633447","сельское поселение"]
["Починковский муниципальный район","Лысовское","66633449","сельское поселение"]
["Починковский муниципальный район","Мурыгинское","66633450","сельское поселение"]
["Починковский муниципальный район","Переснянское","66633455","сельское поселение"]
["Починковский муниципальный район","Починковский муниципальный район","66633000","муниципальный район"]
["Починковский муниципальный район","Починковское","66633101","городское поселение, в состав которого входит город"]
["Починковский муниципальный район","Прудковское","66633465","сельское поселение"]
["Починковский муниципальный район","Стодолищенское","66633485","сельское поселение"]
["Починковский муниципальный район","Стригинское","66633490","сельское поселение"]
["Починковский муниципальный район","Шаталовское","66633495","сельское поселение"]
["Починковский муниципальный район","Шмаковское","66633497","сельское поселение"]
["Рославльский муниципальный район","Астапковичское","66636408","сельское поселение"]
["Рославльский муниципальный район","Богдановское","66636412","сельское поселение"]
["Рославльский муниципальный район","Волковичское","66636404","сельское поселение"]
["Рославльский муниципальный район","Грязенятское","66636420","сельское поселение"]
["Рославльский муниципальный район","Екимовичское","66636430","сельское поселение"]
["Рославльский муниципальный район","Епишевское","66636434","сельское поселение"]
["Рославльский муниципальный район","Жарынское","66636438","сельское поселение"]
["Рославльский муниципальный район","Ивановское сельское поселение","66636427","сельское поселение"]
["Рославльский муниципальный район","Кирилловское","66636442","сельское поселение"]
["Рославльский муниципальный район","Костыревское","66636446","сельское поселение"]
["Рославльский муниципальный район","Крапивенское","66636453","сельское поселение"]
["Рославльский муниципальный район","Лесниковское","66636458","сельское поселение"]
["Рославльский муниципальный район","Липовское","66636460","сельское поселение"]
["Рославльский муниципальный район","Любовское","66636462","сельское поселение"]
["Рославльский муниципальный район","Остерское","66636470","сельское поселение"]
["Рославльский муниципальный район","Перенское","66636472","сельское поселение"]
["Рославльский муниципальный район","Пригорьевское","66636476","сельское поселение"]
["Рославльский муниципальный район","Рославльский муниципальный район","66636000","муниципальный район"]
["Рославльский муниципальный район","Рославльское","66636101","городское поселение, в состав которого входит город"]
["Рославльский муниципальный район","Рославльское сельское поселение","66636480","сельское поселение"]
["Рославльский муниципальный район","Савеевское","66636484","сельское поселение"]
["Рославльский муниципальный район","Сырокоренское","66636488","сельское поселение"]
["Рославльский муниципальный район","Хорошовское","66636492","сельское поселение"]
["Руднянский муниципальный район","Голынковское","66638153","городское поселение, в состав которого входит поселок"]
["Руднянский муниципальный район","Казимировское","66638495","сельское поселение"]
["Руднянский муниципальный район","Кляриновское","66638433","сельское поселение"]
["Руднянский муниципальный район","Кругловское","66638438","сельское поселение"]
["Руднянский муниципальный район","Любавичское сельское поселение","66638450","сельское поселение"]
["Руднянский муниципальный район","Переволочское","66638460","сельское поселение"]
["Руднянский муниципальный район","Понизовское","66638475","сельское поселение"]
["Руднянский муниципальный район","Руднянский муниципальный район","66638000","муниципальный район"]
["Руднянский муниципальный район","Руднянское","66638101","городское поселение, в состав которого входит город"]
["Руднянский муниципальный район","Смолиговское","66638415","сельское поселение"]
["Руднянский муниципальный район","Чистиковское","66638494","сельское поселение"]
["Сафоновский муниципальный район","Барановское","66641410","сельское поселение"]
["Сафоновский муниципальный район","Беленинское","66641415","сельское поселение"]
["Сафоновский муниципальный район","Богдановщинское","66641430","сельское поселение"]
["Сафоновский муниципальный район","Вадинское","66641417","сельское поселение"]
["Сафоновский муниципальный район","Васильевское","66641420","сельское поселение"]
["Сафоновский муниципальный район","Вышегорское","66641425","сельское поселение"]
["Сафоновский муниципальный район","Дроздовское","66641435","сельское поселение"]
["Сафоновский муниципальный район","Дуровское","66641440","сельское поселение"]
["Сафоновский муниципальный район","Зимницкое","66641445","сельское поселение"]
["Сафоновский муниципальный район","Игнатковское","66641455","сельское поселение"]
["Сафоновский муниципальный район","Издешковское","66641457","сельское поселение"]
["Сафоновский муниципальный район","Казулинское","66641460","сельское поселение"]
["Сафоновский муниципальный район","Николо-Погореловское","66641470","сельское поселение"]
["Сафоновский муниципальный район","Прудковское сельское поселение","66641475","сельское поселение"]
["Сафоновский муниципальный район","Пушкинское","66641480","сельское поселение"]
["Сафоновский муниципальный район","Рыбковское","66641495","сельское поселение"]
["Сафоновский муниципальный район","Сафоновский","66641101","городское поселение, в состав которого входит город"]
["Сафоновский муниципальный район","Сафоновский муниципальный район","66641000","муниципальный район"]
["Сафоновский муниципальный район","Старосельское","66641485","сельское поселение"]
["Смоленский муниципальный район","Волоковское","66644415","сельское поселение"]
["Смоленский муниципальный район","Вязгинское","66644417","сельское поселение"]
["Смоленский муниципальный район","Гнездовское сельское поселение","66644421","сельское поселение"]
["Смоленский муниципальный район","Дивасовское","66644424","сельское поселение"]
["Смоленский муниципальный район","Касплянское","66644433","сельское поселение"]
["Смоленский муниципальный район","Катынское","66644436","сельское поселение"]
["Смоленский муниципальный район","Козинское","66644439","сельское поселение"]
["Смоленский муниципальный район","Корохоткинское","66644442","сельское поселение"]
["Смоленский муниципальный район","Кощинское","66644445","сельское поселение"]
["Смоленский муниципальный район","Лоинское","66644454","сельское поселение"]
["Смоленский муниципальный район","Михновское","66644465","сельское поселение"]
["Смоленский муниципальный район","Новосельское сельское поселение","66644406","сельское поселение"]
["Смоленский муниципальный район","Печерское","66644474","сельское поселение"]
["Смоленский муниципальный район","Пионерское","66644476","сельское поселение"]
["Смоленский муниципальный район","Пригорское","66644482","сельское поселение"]
["Смоленский муниципальный район","Сметанинское","66644484","сельское поселение"]
["Смоленский муниципальный район","Смоленский муниципальный район","66644000","муниципальный район"]
["Смоленский муниципальный район","Стабенское","66644486","сельское поселение"]
["Смоленский муниципальный район","Талашкинское","66644492","сельское поселение"]
["Смоленский муниципальный район","Хохловское","66644498","сельское поселение"]
["Сычевский муниципальный район","Дугинское","66646470","сельское поселение"]
["Сычевский муниципальный район","Караваевское","66646425","сельское поселение"]
["Сычевский муниципальный район","Мальцевское сельское поселение","66646420","сельское поселение"]
["Сычевский муниципальный район","Никольское","66646410","сельское поселение"]
["Сычевский муниципальный район","Сычевский муниципальный район","66646000","муниципальный район"]
["Сычевский муниципальный район","Сычевское","66646101","городское поселение, в состав которого входит город"]
["Темкинский муниципальный район","Батюшковское","66648410","сельское поселение"]
["Темкинский муниципальный район","Медведевское","66648435","сельское поселение"]
["Темкинский муниципальный район","Павловское сельское поселение","66648440","сельское поселение"]
["Темкинский муниципальный район","Темкинский муниципальный район","66648000","муниципальный район"]
["Темкинский муниципальный район","Темкинское","66648450","сельское поселение"]
["Угранский муниципальный район","Всходское","66650420","сельское поселение"]
["Угранский муниципальный район","Знаменское","66650435","сельское поселение"]
["Угранский муниципальный район","Угранский муниципальный район","66650000","муниципальный район"]
["Угранский муниципальный район","Угранское","66650477","сельское поселение"]
["Хиславичский муниципальный район","Владимировское","66652405","сельское поселение"]
["Хиславичский муниципальный район","Городищенское","66652425","сельское поселение"]
["Хиславичский муниципальный район","Иозефовское","66652408","сельское поселение"]
["Хиславичский муниципальный район","Кожуховичское","66652410","сельское поселение"]
["Хиславичский муниципальный район","Колесниковское","66652415","сельское поселение"]
["Хиславичский муниципальный район","Корзовское","66652422","сельское поселение"]
["Хиславичский муниципальный район","Микшинское","66652440","сельское поселение"]
["Хиславичский муниципальный район","Печерское сельское поселение","66652455","сельское поселение"]
["Хиславичский муниципальный район","Соинское","66652465","сельское поселение"]
["Хиславичский муниципальный район","Упинское","66652475","сельское поселение"]
["Хиславичский муниципальный район","Хиславичский муниципальный район","66652000","муниципальный район"]
["Хиславичский муниципальный район","Хиславичское","66652151","городское поселение, в состав которого входит поселок"]
["Хиславичский муниципальный район","Череповское","66652480","сельское поселение"]
["Холм-Жирковский муниципальный район","Агибаловское","66654405","сельское поселение"]
["Холм-Жирковский муниципальный район","Батуринское","66654410","сельское поселение"]
["Холм-Жирковский муниципальный район","Богдановское сельское поселение","66654415","сельское поселение"]
["Холм-Жирковский муниципальный район","Болышевское","66654420","сельское поселение"]
["Холм-Жирковский муниципальный район","Игоревское","66654425","сельское поселение"]
["Холм-Жирковский муниципальный район","Канютинское","66654428","сельское поселение"]
["Холм-Жирковский муниципальный район","Лехминское","66654430","сельское поселение"]
["Холм-Жирковский муниципальный район","Нахимовское","66654440","сельское поселение"]
["Холм-Жирковский муниципальный район","Никитинское","66654445","сельское поселение"]
["Холм-Жирковский муниципальный район","Печатниковское","66654455","сельское поселение"]
["Холм-Жирковский муниципальный район","Пигулинское","66654460","сельское поселение"]
["Холм-Жирковский муниципальный район","Стешинское","66654470","сельское поселение"]
["Холм-Жирковский муниципальный район","Томское","66654435","сельское поселение"]
["Холм-Жирковский муниципальный район","Тупиковское","66654472","сельское поселение"]
["Холм-Жирковский муниципальный район","Холм-Жирковский муниципальный район","66654000","муниципальный район"]
["Холм-Жирковский муниципальный район","Холм-Жирковское","66654151","городское поселение, в состав которого входит поселок"]
["Шумячский муниципальный район","Надейковичское","66656440","сельское поселение"]
["Шумячский муниципальный район","Озерное","66656420","сельское поселение"]
["Шумячский муниципальный район","Первомайское сельское поселение","66656445","сельское поселение"]
["Шумячский муниципальный район","Понятовское","66656425","сельское поселение"]
["Шумячский муниципальный район","Руссковское","66656435","сельское поселение"]
["Шумячский муниципальный район","Снегиревское","66656405","сельское поселение"]
["Шумячский муниципальный район","Студенецкое","66656460","сельское поселение"]
["Шумячский муниципальный район","Шумячский муниципальный район","66656000","муниципальный район"]
["Шумячский муниципальный район","Шумячское","66656151","городское поселение, в состав которого входит поселок"]
["Ярцевский муниципальный район","Капыревщинское","66658415","сельское поселение"]
["Ярцевский муниципальный район","Михейковское","66658435","сельское поселение"]
["Ярцевский муниципальный район","Мушковичское","66658445","сельское поселение"]
["Ярцевский муниципальный район","Подрощинское","66658455","сельское поселение"]
["Ярцевский муниципальный район","Суетовское","66658480","сельское поселение"]
["Ярцевский муниципальный район","Ярцевский муниципальный район","66658000","муниципальный район"]
["Ярцевский муниципальный район","Ярцевское","66658101","городское поселение, в состав которого входит город"]

{"sheet":"REESTR_EGRUL","index":20,"n_rows":0,"n_cols":0,"rows_kept":0,"cut":false,"hidden":true,"merged":[]}

{"sheet":"modfrmRegion","index":21,"n_rows":0,"n_cols":0,"rows_kept":0,"cut":false,"hidden":true,"merged":[]}

{"sheet":"modfrmReestr","index":22,"n_rows":0,"n_cols":0,"rows_kept":0,"cut":false,"hidden":true,"merged":[]}

{"sheet":"modfrmFindEGRUL","index":23,"n_rows":0,"n_cols":0,"rows_kept":0,"cut":false,"hidden":true,"merged":[]}

{"sheet":"modfrmCheckUpdates","index":24,"n_rows":0,"n_cols":0,"rows_kept":0,"cut":false,"hidden":true,"merged":[]}

{"sheet":"modReestr","index":25,"n_rows":0,"n_cols":0,"rows_kept":0,"cut":false,"hidden":true,"merged":[]}

{"sheet":"modUpdTemplMain","index":26,"n_rows":0,"n_cols":0,"rows_kept":0,"cut":false,"hidden":true,"merged":[]}

{"sheet":"modHyperlink","index":27,"n_rows":0,"n_cols":0,"rows_kept":0,"cut":false,"hidden":true,"merged":[]}

{"sheet":"modClassifierValidate","index":28,"n_rows":0,"n_cols":0,"rows_kept":0,"cut":false,"hidden":true,"merged":[]}